{"text_format":"2","workbook":"xlsx","n_sheets":1,"sheets":["Planilha Edital"],"not_rendered":{"charts":0,"images":0,"macros":0,"external_links":0,"defined_names":5,"comments":0,"pivot_tables":0},"unopened":[],"bounds":{"document_bytes":16777216,"sheet_cells":100000,"run_cost":"one","rows_first":2000,"rows_last":500,"rows_between":2000,"halvings":0,"cell_chars":16384,"cell_head_chars":4096},"cells_cut":0,"cells_raw":0,"read":"whole","date_system":"1900"}

{"sheet":"Planilha Edital","index":0,"n_rows":29,"n_cols":8,"rows_kept":29,"cut":false,"hidden":false,"merged":[]}
[null,"Anexo I - Planilha de Especificações Técnicas, Quantidades e Preços\n"]
[]
[null,"Item","CATMAT","Especificações","Unidade","Quant","Valor Unit (R$)","Subtotal (R$)"]
[null,1,73768,"Retroescavadeira sobre rodas, tração 4x4, motor diesel, potência bruta mínima 85 HP ou unidade equivalente, capacidade mínima da caçamba carregadeira 1,00 m³, peso operacional mínimo 7.100 kg, com profundidade de escavação mínima de 4,30 metros. Garantia mínima 12 meses e assistência técnica garantida. Entrega conforme item 4.1. ","unid",14,null,{"$f":"F4*G4","v":0}]
[null,2,73768,"Retroescavadeira sobre rodas, tração 4x4, motor diesel, potência bruta mínima 85 HP ou unidade equivalente, capacidade mínima da caçamba carregadeira 1,00 m³, peso operacional mínimo 7.100 kg, com profundidade de escavação mínima de 4,30 metros. Garantia mínima 12 meses e assistência técnica garantida. Entrega conforme item 4.1... Cota Exclusiva do item 1","unid",5,null,0]
[null,3,225468,"Pá carregadeira sobre rodas, equipada com motor diesel, potência mínima 120 HP ou unidade equivalente, tração 4x4, caçamba capacidade mínima 1,7 m³, cabine fechada com ar-condicionado, peso operacional mínimo 10.000 kg. Garantia mínima 12 meses e assistência técnica garantida. Entrega conforme item 4.1. ","unid",8,null,0]
[null,4,225468,"Pá carregadeira sobre rodas, equipada com motor diesel, potência mínima 120 HP ou unidade equivalente, tração 4x4, caçamba capacidade mínima 1,7 m³, cabine fechada com ar-condicionado, peso operacional mínimo 10.000 kg. Garantia mínima 12 meses e assistência técnica garantida. Entrega conforme item 4.1. . Cota Exclusiva do item 3.","unid",2,null,0]
[null,5,225485,"Motoniveladora, com cabine fechada com ar-condicionado, motor diesel, potência mínima 140 HP ou unidade equivalente, transmissão mínima 6 velocidades a frente e 3 a ré, peso operacional mínimo 14.500 kg, lâmina largura mínimo de 3.500 mm. Ripper traseiro com três dentes. Garantia mínima 12 meses e assistência técnica garantida. Entrega conforme item 4.1. ","unid",12,null,0]
[null,6,225485,"Motoniveladora, com cabine fechada com ar-condicionado, motor diesel, potência mínima 140 HP ou unidade equivalente, transmissão mínima 6 velocidades a frente e 3 a ré, peso operacional mínimo 14.500 kg, lâmina largura mínimo de 3.500 mm. Ripper traseiro com três dentes. Garantia mínima 12 meses e assistência técnica garantida. Entrega conforme item 4.1.  Cota Exclusiva do item 5","unid",3,null,0]
[null,7,130419,"Escavadeira Hidráulica sobre esteiras, com cabine fechada e ar-condicionado, motor diesel, potência mínima 150 HP (148 HP) 140 ou unidade equivalente, capacidade volumétrica da caçamba mínima 1,00 m³, peso operacional mínimo 20.000 kg. Garantia mínima 12 meses e assistência técnica garantida. Entrega conforme item 4.1. ","unid",9,null,0]
[null,8,130419,"Escavadeira Hidráulica sobre esteiras, com cabine fechada e ar-condicionado, motor diesel, potência mínima 150 HP (148 HP) 140 ou unidade equivalente, capacidade volumétrica da caçamba mínima 1,00 m³, peso operacional mínimo 20.000 kg. Garantia mínima 12 meses e assistência técnica garantida. Entrega conforme item 4.1. . Cota Exclusiva do item 7","unid",2,null,0]
[null,9,214905,"Caminhão toco, potência mínima 160 CV, cabine com barra de proteção, com ar-condicionado, distância entre-eixos mínimo 4.700 mm, capacidade de carga útil com equipamento mínima 8.250 kg. Com carroceria pipa capacidade mínimo 7.000 litros, tanque construído em aço carbono, tratamento externo com tinta epóxi, chapa em aço, suporte para fixar mangotes e válvulas de sucção, bomba acionada por tomada força através de cardan para autocarregamento. O 1º emplacamento em nome da Codevasf, com taxas e impostos quitados, emplacados e licenciados no município de entrega especificado pela Codevasf no item 4.1. Garantia mínima 12 meses e assistência técnica garantida. Entrega conforme item 4.1. ","unid",5,null,0]
[null,10,214905,"Caminhão toco, potência mínima 160 CV, cabine com barra de proteção, com ar-condicionado, distância entre-eixos mínimo 4.700 mm, capacidade de carga útil com equipamento mínima 8.250 kg. Com carroceria pipa capacidade mínimo 7.000 litros, tanque construído em aço carbono, tratamento externo com tinta epóxi, chapa em aço, suporte para fixar mangotes e válvulas de sucção, bomba acionada por tomada força através de cardan para autocarregamento. O 1º emplacamento em nome da Codevasf, com taxas e impostos quitados, emplacados e licenciados no município de entrega especificado pela Codevasf no item 4.1. Garantia mínima 12 meses e assistência técnica garantida. Entrega conforme item 4.1. . Cota Exclusiva do item 9","unid",1,null,0]
[null,11,361421,"Veículo de transporte de pessoal tipo Pick-Up, novo 0 Km, fabricação nacional, cabine dupla, quatro portas, motor Diesel, turboalimentado, refrigerado a água,com cilindros em linha, potência mínima de 170 cv, injeção direta, cilindrada mínima de 2.0 l, tanque de combustível mínimo de 70 litros, transmissão automática com no mínimo 05 marchas à frente e 01 ré, tração 4x4 e 4x4-reduzida, rodas de aço ou liga leve,  pneus R16, direção hidráulica ou elétrica, freios hidráulicos-ABS, dianteiros com disco ventilado e traseiro com tambores, freio de serviço,vidros elétricos, retrovisores elétricos com controle interno, cabine com capacidade para 05 (cinco) passageiros, incluindo o motorista, bancos revestidos em tecido e com proteção de cabeça ajustável, jogo de tapetes emborrachados, volante ajustável, parabrisas degradê, suspensão independente, climatização através de ar condicionado original instalado de fábrica, caçamba com capacidade mínima de 1000 litros e proteção interna, capota marítima, estribos e parachoques originais, barra de proteção nas portas, bocal de abastecimento externo, sistema de som AM/FM, CD-player-MP3 ou entrada USB, autofalantes instalados, alarme e travas elétricas, itens mínimos de série: Airbag duplo frontal, cintos laterais com três pontos de fixação, hodômetro digital, barras laterais conta impactos, bancos dianteiros com inclinação ajustável, iluminação interna com temporizador ou através de chave seletora ligada em conjunto com a abertura das portas, extintor de incêndio carregado, acessórios de segurança conforme legislação brasileira, roda e pneu sobressalente de emergência, garantia de fábrica mínima de 03 (três) anos, assistência técnica e rede credenciada em todas as capitais da Federação e no DF, manuais e documentação técnicos em português. O veículo ofertado deverá ter todos os itens originais de fábrica referentes ao seu modelo/versão de produção. O 1º emplacamento em nome da Codevasf, com taxas e impostos quitados, emplacados e licenciados no município de entrega especificado pela Codevasf no item 4.1.. Garantia mínima de 12 meses e assistência técnica garantida. Entrega conforme item 4.1.","unid",3,null,0]
[null,12,361421,"Veículo de transporte de pessoal tipo Pick-Up, novo 0 Km, fabricação nacional, cabine dupla, quatro portas, motor Diesel, turboalimentado, refrigerado a água,com cilindros em linha, potência mínima de 170 cv, injeção direta, cilindrada mínima de 2.0 l, tanque de combustível mínimo de 70 litros, transmissão automática com no mínimo 05 marchas à frente e 01 ré, tração 4x4 e 4x4-reduzida, rodas de aço ou liga leve,  pneus R16, direção hidráulica ou elétrica, freios hidráulicos-ABS, dianteiros com disco ventilado e traseiro com tambores, freio de serviço,vidros elétricos, retrovisores elétricos com controle interno, cabine com capacidade para 05 (cinco) passageiros, incluindo o motorista, bancos revestidos em tecido e com proteção de cabeça ajustável, jogo de tapetes emborrachados, volante ajustável, parabrisas degradê, suspensão independente, climatização através de ar condicionado original instalado de fábrica, caçamba com capacidade mínima de 1000 litros e proteção interna, capota marítima, estribos e parachoques originais, barra de proteção nas portas, bocal de abastecimento externo, sistema de som AM/FM, CD-player-MP3 ou entrada USB, autofalantes instalados, alarme e travas elétricas, itens mínimos de série: Airbag duplo frontal, cintos laterais com três pontos de fixação, hodômetro digital, barras laterais conta impactos, bancos dianteiros com inclinação ajustável, iluminação interna com temporizador ou através de chave seletora ligada em conjunto com a abertura das portas, extintor de incêndio carregado, acessórios de segurança conforme legislação brasileira, roda e pneu sobressalente de emergência, garantia de fábrica mínima de 03 (três) anos, assistência técnica e rede credenciada em todas as capitais da Federação e no DF, manuais e documentação técnicos em português. O veículo ofertado deverá ter todos os itens originais de fábrica referentes ao seu modelo/versão de produção. O 1º emplacamento em nome da Codevasf, com taxas e impostos quitados, emplacados e licenciados no município de entrega especificado pela Codevasf no item 4.1.. Garantia mínima de 12 meses e assistência técnica garantida. Entrega conforme item 4.1.Cota Exclusiva do item 11.","unid",1,null,0]
[null,13,1937,"Caminhão tipo munck com capacidade mínima de 17,7 T, com carroceria estendida, 6 marchas à frente 1 á ré, potência mínima 240 Cv, sistema de injeção Common Rail, tecnologia de transmissão EGR de ar Wabco, tração 6x2, freio de serviço Ar “S” came tipo tambor nas rodas dianteira e traseira com ABS+EBD, circuito duplo, direção hidráulica, com patolamento, equipado com Guindaste com alcance horizontal hidráulico 11.820mm, alcance Máximo horizontal 17.750mm, alcance Máximo vertical 15.300mm e alcance Máximo vertical do solo 20.800mm, ângulo de rotação 400º, velocidade de rotação de 20s/180º, pressão de trabalho de 290 bar, peso sem estabilizadores 3.060 Kg, PBT 16 tons. O 1º emplacamento em nome da Codevasf, com taxas e impostos quitados, emplacados e licenciados no município de entrega especificado pela Codevasf no item 4.1. Garantia mínima de 12 meses e assistência técnica garantida. Entrega conforme item 4.1 \n","unid",3,null,0]
[null,14,70009,"Compactador liso terraplanagem, rolo compactador vibratório de 1 (um) cilindro com motorização mínimo de 80 HP, peso operacional mínimo de 7200 KG, módulo dianteiro liso mínimo de 3700 KG, com tração nas rodas e cilindro, kit multi patas corrugado, comprimento mínimo de 4776mm, largura mínima de 1852mm, cabine com ar condicionado. Garantia mínima 12 meses e assistência técnica garantida. Entrega conforme item 4.1.","unid",3,null,0]
[null,15,70009,"Compactador liso terraplanagem, rolo compactador vibratório de 1 (um) cilindro com motorização mínimo de 80 HP, peso operacional mínimo de 7200 KG, módulo dianteiro liso mínimo de 3700 KG, com tração nas rodas e cilindro, kit multi patas corrugado, comprimento mínimo de 4776mm, largura mínima de 1852mm, cabine com ar condicionado. Garantia mínima 12 meses e assistência técnica garantida. Entrega conforme item 4.1. Cota Exclusiva do item 14","unid",1,null,0]
[null,16,52582,"Rolo compactador Vibratório. Rolo compactador pé de carneiro vibratório, potência mínima de 125 HP, peso operacional mínimo de 11,68 T, impacto dinâmico mínimo de 26/13 T, largura de trabalho mínima de 2,15 m, com estrutura de proteção ROPs. Cabine com ar condicionado. Garantia mínima 12 meses e assistência técnica garantida. Entrega conforme item 4.1.","unid",3,null,0]
[null,17,52582,"Rolo compactador Vibratório. Rolo compactador pé de carneiro vibratório, potência mínima de 125 HP, peso operacional mínimo de 11,68 T, impacto dinâmico mínimo de 26/13 T, largura de trabalho mínima de 2,15 m, com estrutura de proteção ROPs. Cabine com ar condicionado. Garantia mínima 12 meses e assistência técnica garantida. Entrega conforme item 4.1. Cota exclusiva do item 16.","unid",1,null,0]
[null,18,1937,"Caminhão truck tração 6x2, equipado com carroceria aberta de madeira de lei de ótima qualidade e de acordo com a norma do CONTRAN, novo zero km; modelo e ano de fabricação vigente; motor a diesel, potência mínima de 275 cv; sistema de injeção eletrônica; câmbio e transmissão mecânicos de 8 marchas sincronizadas e 1 a ré; acelerador eletrônico; embreagem de acionamento hidráulico; banco do motorista com suspensão a ar; MP3 player, entrada USB, rádio com 4 alto-falantes e antena; ar condicionado e vidros elétricos originais de fábrica; cabine com isolamento termoacústico; computador de bordo com sistema detector de falhas do motor; tacógrafo digital; controle de tração; sistema elétrico de 12 ou 24 V; rodas em aço estampado 22,5\" x 7,5\", pneus 275/80R22,5; freio de acionamento pneumático nas 4 rodas ou hidráulico servoassistido (auxiliado) a ar,  estacionamento a ar com molas acumuladoras e atuação nas rodas traseiras; freio motor válvula tipo borboleta no tubo de escapamento com acionamento eletropneumático; direção hidráulica com esferas recirculantes; capacidade mínima do tanque de combustível de 250 litros; tapetes; estepe com as mesmas especificações das rodas e pneus; macaco, chave de rodas e triângulo; sirene de alerta de ré; com todos os equipamentos e acessórios exigidos pelo Código Brasileiro de Trânsito, garantia mínima de 01 (um) ano; a marca ofertada deverá possuir Assistência Técnica Autorizada nos estados de Goiás e DF. Entrega conforme item 4.1.","unid",6,null,0]
[null,19,1937,"Caminhão truck tração 6x2, equipado com carroceria aberta de madeira de lei de ótima qualidade e de acordo com a norma do CONTRAN, novo zero km; modelo e ano de fabricação vigente; motor a diesel, potência mínima de 275 cv; sistema de injeção eletrônica; câmbio e transmissão mecânicos de 8 marchas sincronizadas e 1 a ré; acelerador eletrônico; embreagem de acionamento hidráulico; banco do motorista com suspensão a ar; MP3 player, entrada USB, rádio com 4 alto-falantes e antena; ar condicionado e vidros elétricos originais de fábrica; cabine com isolamento termoacústico; computador de bordo com sistema detector de falhas do motor; tacógrafo digital; controle de tração; sistema elétrico de 12 ou 24 V; rodas em aço estampado 22,5\" x 7,5\", pneus 275/80R22,5; freio de acionamento pneumático nas 4 rodas ou hidráulico servoassistido (auxiliado) a ar,  estacionamento a ar com molas acumuladoras e atuação nas rodas traseiras; freio motor válvula tipo borboleta no tubo de escapamento com acionamento eletropneumático; direção hidráulica com esferas recirculantes; capacidade mínima do tanque de combustível de 250 litros; tapetes; estepe com as mesmas especificações das rodas e pneus; macaco, chave de rodas e triângulo; sirene de alerta de ré; com todos os equipamentos e acessórios exigidos pelo Código Brasileiro de Trânsito, garantia mínima de 01 (um) ano; a marca ofertada deverá possuir Assistência Técnica Autorizada nos estados de Goiás e DF. Entrega conforme item 4.1. Cota exclusiva do item 18.","unid",{"$f":"8*0.25","v":2},null,0]
[null,20,1937,"Caminhão com carroceria tipo baú: Novo, zero km; Ano de fabricação: ano corrente; Modelo de fabricação: 2020 ou superior; motor com alimentação à diesel;  cor branca; 04 cilindros ou superior; transmissão com o mínimo de 06 (seis) marchas avante e 01 (uma) marcha à ré; potência de 140 CV (115 kW) ou superior; Peso Bruto Total (PBT) mínimo 4.400 kg; Carga útil com equipamento mínima 3.000 kg; capacidade mínima do tanque de combustível de 80 litros; pneus originais de fábrica homologados pela montadora; direção hidráulica; tacógrafo; ar condicionado na cabine do motorista; preparação e instalação de aparelho de som ambiente CD/VDV/Player com entrada USB instalado na cabine do motorista; preparação e instalação de alto-falantes na cabine do motorista; airbag para motorista; cinto de segurança de  03 (três) pontos para motorista e passageiro; todos os equipamentos de segurança exigidos por lei.\nCarroceria fechada tipo caixa de carga (baú), com revestimento externo em chapa duralumínio corrugada nas laterais e fixadas por rebites, teto com chapa inteiriça com 1,00 mm; quadro traseiro fabricado com perfis de chapa de aço, duas portas com abertura total no fundo e 01 (uma) na lateral, assoalho em chapa de 3,0 mm, vergalhão para amarração de cargas, caixa para ferramentas, iluminação  interna e externa conforme CNT, para-choque conforme resolução Contran, protetor lateral, faixas reflexivas, sistema elétrico e lanternas conforme normas ABNT, dimensões compatíveis com as dimensões do veículo e atendendo a legislação especifica, com volume mínimo de 20 m³, sendo necessário apresentar desenho com as dimensões do veículo e carroceria na apresentação da proposta. Emplacado. Com logomarca da CODEVASF silkada em local vísivel, conforme modelo no edital. O 1º emplacamento em nome da Codevasf, com taxas e impostos quitados, emplacados e licenciados no município de entrega especificado pela Codevasf no item 4.1. Garantia mínima de 12 meses e assistência técnica garantida. Entrega conforme item 4.1.","unid",3,null,0]
[null,21,1937,"Caminhão com carroceria tipo baú: Novo, zero km; Ano de fabricação: ano corrente; Modelo de fabricação: 2020 ou superior; motor com alimentação à diesel;  cor branca; 04 cilindros ou superior; transmissão com o mínimo de 06 (seis) marchas avante e 01 (uma) marcha à ré; potência de 140 CV (115 kW) ou superior; Peso Bruto Total (PBT) mínimo 4.400 kg; Carga útil com equipamento mínima 3.000 kg; capacidade mínima do tanque de combustível de 80 litros; pneus originais de fábrica homologados pela montadora; direção hidráulica; tacógrafo; ar condicionado na cabine do motorista; preparação e instalação de aparelho de som ambiente CD/VDV/Player com entrada USB instalado na cabine do motorista; preparação e instalação de alto-falantes na cabine do motorista; airbag para motorista; cinto de segurança de  03 (três) pontos para motorista e passageiro; todos os equipamentos de segurança exigidos por lei.\nCarroceria fechada tipo caixa de carga (baú), com revestimento externo em chapa duralumínio corrugada nas laterais e fixadas por rebites, teto com chapa inteiriça com 1,00 mm; quadro traseiro fabricado com perfis de chapa de aço, duas portas com abertura total no fundo e 01 (uma) na lateral, assoalho em chapa de 3,0 mm, vergalhão para amarração de cargas, caixa para ferramentas, iluminação  interna e externa conforme CNT, para-choque conforme resolução Contran, protetor lateral, faixas reflexivas, sistema elétrico e lanternas conforme normas ABNT, dimensões compatíveis com as dimensões do veículo e atendendo a legislação especifica, com volume mínimo de 20 m³, sendo necessário apresentar desenho com as dimensões do veículo e carroceria na apresentação da proposta. Emplacado. Com logomarca da CODEVASF silkada em local vísivel, conforme modelo no edital. O 1º emplacamento em nome da Codevasf, com taxas e impostos quitados, emplacados e licenciados no município de entrega especificado pela Codevasf no item 4.1. Garantia mínima de 12 meses e assistência técnica garantida. Entrega conforme item 4.1. Cota exclusiva do item 20.","unid",1,null,0]
[null,22,130427,"Trator de esteiras com potência mínima de 115 HP ou unidade equivalente, novo, equipado com motor de 6 cilindros, peso operacional mínimo 14 toneladas, lâmina mínimo 3000 mm x 990 mm, diesel, sistema elétrico de 24 volts, ar condicionado, transmissão, freios hidrostáticos, controlado por alavanca \"joystick\", dispositivo hidráulico de ajuste da esteira, dentes de perfis antiaderente, proteção externa da roda motriz, proteções dianteira e traseira da esteira, proteção da guia central da esteira, roletes inferiores e roletes de guia com lubrificação permanente, correntes (esteira selada e lubrificada), elo mestre bipartido, com sistema hidráulico para acessórios, ar condionado, com RIPPER tipo paralelogramo, profundidade mínima de penetração de 430 mm, RIPPER com 3 dentes, certificado  EPA Tier III//MAR-I. Garantia mínima 12 meses e assistência técnica garantida. Entrega conforme item 4.1","unid",3,null,0]
[null,23,130427,"Trator de esteiras com potência mínima de 115 HP ou unidade equivalente, novo, equipado com motor de 6 cilindros, peso operacional mínimo 14 toneladas, lâmina mínimo 3000 mm x 990 mm, diesel, sistema elétrico de 24 volts, ar condicionado, transmissão, freios hidrostáticos, controlado por alavanca \"joystick\", dispositivo hidráulico de ajuste da esteira, dentes de perfis antiaderente, proteção externa da roda motriz, proteções dianteira e traseira da esteira, proteção da guia central da esteira, roletes inferiores e roletes de guia com lubrificação permanente, correntes (esteira selada e lubrificada), elo mestre bipartido, com sistema hidráulico para acessórios, ar condionado, com RIPPER tipo paralelogramo, profundidade mínima de penetração de 430 mm, RIPPER com 3 dentes, certificado  EPA Tier III//MAR-I. Garantia mínima 12 meses e assistência técnica garantida. Entrega conforme item 4.1. Cota exclusiva do item 22.","unid",1,null,0]
[null,24,4294,"Caminhão trucado com caçamba metálica basculante, potência mínima 238 CV, novo, ano de fabricação corrente, 0 Km, ar condicionado, cinto de segurança de 03 (três) pontos, distância entre eixos adequada ao equipamento caçamba, carga útil máxima de 15.500 kg. Com caçamba de capacidade volumétrica mínima 10,0 m³, tampa traseira basculante padrão com fechamento automático, assoalho em aço espessura mínima 4,50 mm, laterais em aço espessura mínima 4,50 mm, pinos de cordas nas laterais, frente e traseira. Cilindro hidráulico central com no mínimo uma unidade, com mangueiras para conexões, caixa metálica para ferramenta, escada lateral, faixas reflexivas e suporte para pá, sistema elétrico e lanternas conforme normas CNT, caixa de ferramentas, faixas reflexivas. Garantia mínima de 12 meses. com todos os equipamentos e acessórios exigidos pelo Código Brasileiro de Trânsito, garantia mínima de 01 (um) ano; a marca ofertada deverá possuir Assistência Técnica Autorizada nos estados de Goiás e DF. Entrega conforme o item 4.1.","unid",11,null,0]
[null,25,4294,"Caminhão trucado com caçamba metálica basculante, potência mínima 238 CV, novo, ano de fabricação corrente, 0 Km, ar condicionado, cinto de segurança de 03 (três) pontos, distância entre eixos adequada ao equipamento caçamba, carga útil máxima de 15.500 kg. Com caçamba de capacidade volumétrica mínima 10,0 m³, tampa traseira basculante padrão com fechamento automático, assoalho em aço espessura mínima 4,50 mm, laterais em aço espessura mínima 4,50 mm, pinos de cordas nas laterais, frente e traseira. Cilindro hidráulico central com no mínimo uma unidade, com mangueiras para conexões, caixa metálica para ferramenta, escada lateral, faixas reflexivas e suporte para pá, sistema elétrico e lanternas conforme normas CNT, caixa de ferramentas, faixas reflexivas. Garantia mínima de 12 meses. com todos os equipamentos e acessórios exigidos pelo Código Brasileiro de Trânsito, garantia mínima de 01 (um) ano; a marca ofertada deverá possuir Assistência Técnica Autorizada nos estados de Goiás e DF. Entrega conforme o item 4.1.Cota exclusiva do item 24.","unid",3,null,{"$f":"F28*G28","v":0}]
[{"$nulls":6},"TOTAL",{"$f":"SUM(H4:H28)","v":0}]